bitfinex/quotes_BTCUSD_20230114
["timestamp","ask_amount","ask_price","bid_price","bid_amount"]
[1673710362900,0.320463,20849.0,20846.0,0.479688]
[1673710363137,0.212298,20848.0,20846.0,0.479708]
[1673710363392,0.19072595,20849.0,20846.0,0.479708]
[1673710363632,0.480614,20851.0,20846.0,0.479708]
[1673710363878,0.0763,20849.0,20846.0,0.0526094]
[1673710364134,0.0763,20849.0,20845.0,0.479711]
[1673710364135,0.320463,20848.0,20847.0,0.139]
[1673710364384,0.320463,20848.0,20845.0,0.479711]
[1673710364638,0.212298,20847.0,20846.0,0.139]
[1673710364889,1.964666,20850.0,20846.0,0.139]
[1673710365140,0.0763,20849.0,20846.0,0.1916094]
[1673710365369,0.320463,20848.0,20846.0,0.139]
[1673710365625,0.212298,20847.0,20845.0,0.479711]
[1673710365865,0.001,20848.0,20845.0,0.959425]
[1673710366125,1.0104,20850.0,20845.0,0.959425]
[1673710366371,0.001,20849.0,20846.0,0.1886094]
[1673710366605,1.0104,20850.0,20846.0,0.1886094]
[1673710366606,1.0104,20850.0,20846.0,0.959399]
[1673710366861,0.001,20847.0,20846.0,1.0120084]
[1673710367099,0.001,20847.0,20846.0,0.959399]
[1673710367352,0.001,20847.0,20846.0,0.615707]
[1673710367600,1.0104,20850.0,20846.0,0.479707]
[1673710367837,1.0104,20850.0,20846.0,0.5323164]
[1673710368092,0.320463,20849.0,20846.0,0.5323164]
[1673710368354,0.212298,20848.0,20846.0,0.95190397]
[1673710368585,0.001,20847.0,20846.0,1.08790397]
[1673710368825,1.0104,20850.0,20846.0,0.95190397]
[1673710369075,0.001,20849.0,20846.0,1.13551337]
[1673710369314,0.320463,20848.0,20846.0,0.94690397]
[1673710369565,0.001,20847.0,20846.0,1.08290397]
[1673710369865,0.001,20847.0,20846.0,0.136]
[1673710370118,0.001,20847.0,20845.0,0.479711]
[1673710370119,1.567018,20850.0,20845.0,0.479711]
[1673710370368,0.801104,20849.0,20846.0,0.136]
[1673710370620,0.212298,20848.0,20845.0,0.479711]
[1673710370882,0.480641,20849.0,20845.0,0.479711]
[1673710370883,0.320463,20847.0,20845.0,0.479711]
[1673710371125,0.1,20848.0,20844.0,0.479736]
[1673710371382,0.320463,20847.0,20844.0,0.479736]
[1673710371633,0.002,20847.0,20844.0,0.479736]
[1673710371881,0.002,20847.0,20842.0,0.48618121]
[1673710371882,0.19072595,20846.0,20842.0,0.48618121]
[1673710372117,0.481691,20847.0,20842.0,0.00638821]
[1673710372375,0.320463,20846.0,20842.0,0.00638821]
[1673710372638,0.481691,20847.0,20844.0,0.139]
[1673710372639,0.212298,20845.0,20844.0,0.139]
[1673710372869,0.320463,20845.0,20844.0,0.139]
[1673710373356,0.800194,20845.0,20842.0,0.00638821]
[1673710373601,0.212298,20844.0,20842.0,0.00638821]
[1673710373855,0.320463,20843.0,20842.0,0.00638821]
[1673710374099,0.556731,20845.0,20842.0,0.00638821]
[1673710374357,0.320463,20844.0,20842.0,0.00638821]
[1673710374604,0.212298,20843.0,20842.0,0.00638821]
[1673710375122,0.320463,20843.0,20842.0,0.00638821]
[1673710375365,0.321463,20843.0,20842.0,0.07538821]
[1673710376126,0.001,20843.0,20842.0,0.07538821]
[1673710376636,0.001,20843.0,20842.0,0.55518821]
[1673710377397,0.001,20843.0,20842.0,0.07538821]
[1673710378705,0.213298,20843.0,20842.0,0.07538821]
[1673710378939,0.001,20843.0,20842.0,0.07538821]
[1673710379452,0.001,20843.0,20842.0,0.07038821]
[1673710379741,0.321463,20843.0,20842.0,0.07038821]
[1673710380686,0.321463,20843.0,20842.0,0.06931121]
[1673710381174,1.281017,20843.0,20842.0,0.06931121]
[1673710382482,1.74067633,20843.0,20842.0,0.04478219]
[1673710382717,0.04763467,20841.0,20839.0,0.00638821]
[1673710382981,0.212298,20840.0,20839.0,0.00638821]
[1673710383229,0.692144,20840.0,20839.0,0.00638821]
[1673710384343,1.27199,20840.0,20839.0,0.00638821]
[1673710384597,1.17199,20840.0,20839.0,0.00638821]
[1673710385338,1.17199,20840.0,20839.0,0.00938821]
[1673710385339,1.20899,20840.0,20839.0,0.00938821]
[1673710386361,0.249298,20840.0,20839.0,0.00938821]
[1673710386599,0.037,20840.0,20839.0,0.00938821]
[1673710387836,0.357463,20840.0,20839.0,0.00938821]
[1673710388091,0.837309,20840.0,20839.0,0.00938821]
[1673710388338,1.393955,20840.0,20839.0,0.00938821]
[1673710388838,1.693955,20840.0,20839.0,0.00938821]
[1673710389353,1.393955,20840.0,20839.0,0.00938821]
[1673710389598,2.03692732,20840.0,20839.0,0.00938821]
[1673710389853,2.13692732,20840.0,20839.0,0.00938821]
[1673710390373,2.21392732,20840.0,20839.0,0.00938821]
[1673710390622,2.29092732,20840.0,20839.0,0.00938821]
[1673710391599,2.19092732,20840.0,20839.0,0.00938821]
[1673710392351,0.357463,20840.0,20839.0,0.06199761]
[1673710392604,0.357463,20840.0,20839.0,0.54186661]
[1673710392605,0.037,20840.0,20839.0,0.54186661]
[1673710392858,0.037,20840.0,20839.0,0.48925721]
[1673710393373,0.037,20840.0,20839.0,0.96912621]
[1673710393657,0.037,20840.0,20839.0,1.26912621]
[1673710393915,0.037,20840.0,20839.0,1.36912621]
[1673710394398,0.04763467,20841.0,20839.0,1.28604522]
[1673710394642,0.012,20840.0,20839.0,1.34404522]
[1673710394947,0.04763467,20841.0,20839.0,1.28604522]
[1673710395168,0.012,20840.0,20839.0,1.04404522]
[1673710395411,0.012,20840.0,20839.0,1.32412621]
[1673710395654,0.012,20840.0,20839.0,1.72401347]
[1673710395913,0.012,20840.0,20839.0,1.80101347]
[1673710396180,0.04763467,20841.0,20840.0,0.00924704]
[1673710396435,0.04763467,20841.0,20840.0,1.6451427]
[1673710396690,3.467e-05,20841.0,20840.0,1.66506171]
[1673710396946,0.01389164,20850.0,20841.0,0.1]
[1673710397216,0.01389164,20850.0,20843.0,1.439283]
[1673710397217,0.20461759,20850.0,20843.0,1.439283]
[1673710397567,0.01389164,20850.0,20844.0,0.4304711]
[1673710397729,0.20461759,20850.0,20844.0,0.4304711]
[1673710397953,0.01389164,20850.0,20845.0,1.0120334]
[1673710398456,0.01889164,20850.0,20846.0,0.4296094]
[1673710398702,0.01889164,20850.0,20847.0,1.86930248]
[1673710398941,0.01889164,20850.0,20848.0,0.1]
[1673710399193,0.01389164,20850.0,20849.0,1.438917]
[1673710399455,0.01389164,20850.0,20849.0,2.1172352]
[1673710399456,0.01889164,20850.0,20849.0,2.1172352]
[1673710399709,0.01389164,20850.0,20849.0,2.1172352]
[1673710399970,0.01789164,20850.0,20849.0,2.11772055]
[1673710400475,0.07389164,20850.0,20849.0,2.12072055]
[1673710400733,0.07389164,20850.0,20849.0,1.44240235]
[1673710401268,0.01389164,20850.0,20849.0,1.43940235]
[1673710401525,0.01389164,20850.0,20849.0,0.95976335]
[1673710401750,0.01389164,20850.0,20848.0,0.479658]
[1673710402496,0.01389164,20850.0,20849.0,0.147]
[1673710402761,0.01389164,20850.0,20849.0,0.959278]
[1673710403005,0.01389164,20850.0,20849.0,1.54638738]
[1673710403281,0.01389164,20850.0,20849.0,1.92338738]
[1673710403550,0.01389164,20850.0,20849.0,2.0402254]
[1673710403861,0.01389164,20850.0,20849.0,2.16630639]
[1673710404655,0.01472484,20854.0,20850.0,0.59391265]
[1673710404898,4.84e-06,20854.0,20851.0,1.60762729]
[1673710405196,0.01287402,20857.0,20852.0,2.84633729]
[1673710405480,0.001,20862.0,20856.0,0.2304]
[1673710405719,0.001,20862.0,20857.0,3.23483763]
[1673710405988,0.001,20862.0,20859.0,0.08627268]
[1673710406242,0.001,20862.0,20860.0,2.93463763]
[1673710406508,0.001,20862.0,20861.0,0.377]
[1673710406769,0.001,20862.0,20861.0,0.86419643]
[1673710407053,0.001,20862.0,20861.0,1.23519363]
[1673710407305,0.22116087,20874.0,20861.0,1.84200472]
[1673710407562,0.22116087,20874.0,20864.0,0.077]
[1673710407563,0.19072595,20873.0,20864.0,0.077]
[1673710407849,0.943,20874.0,20865.0,0.28790657]
[1673710408163,1.13372595,20874.0,20866.0,0.29412195]
[1673710408395,1.13372595,20874.0,20867.0,1.0110314]
[1673710408396,0.933,20874.0,20867.0,1.0110314]
[1673710408665,0.01190464,20873.0,20868.0,0.0526094]
[1673710408920,0.01190464,20873.0,20869.0,1.4901074]
[1673710409192,0.01190464,20873.0,20870.0,0.1526094]
[1673710409483,0.0114171,20873.0,20871.0,1.4900084]
[1673710409732,0.0114171,20873.0,20872.0,0.2060094]
[1673710409989,0.0114171,20873.0,20872.0,0.0085]
[1673710410254,0.0114171,20873.0,20871.0,0.958266]
[1673710410735,0.0114171,20873.0,20871.0,0.479133]
[1673710410977,0.19072595,20872.0,20866.0,0.479237]
[1673710411229,0.51118895,20871.0,20864.0,0.479282]
[1673710411482,0.88022564,20870.0,20861.0,0.479354]
[1673710411743,0.51118895,20869.0,20862.0,0.5319374]
[1673710412005,0.212298,20868.0,20866.0,0.14]
[1673710412265,0.320463,20867.0,20861.0,0.479363]
[1673710412526,0.212298,20866.0,20861.0,0.620363]
[1673710412841,0.320463,20865.0,20860.0,0.479378]
[1673710413114,0.51118895,20864.0,20858.0,0.479422]
[1673710413390,0.40302395,20863.0,20854.0,0.479509]
[1673710413656,0.607977,20865.0,20861.0,0.019]
[1673710413657,0.99053095,20862.0,20861.0,0.019]
[1673710413891,0.799805,20862.0,20861.0,0.019]
[1673710414146,1.099805,20862.0,20861.0,0.019]
[1673710414407,1.099805,20862.0,20853.0,0.479545]
[1673710414691,1.099805,20862.0,20853.0,0.5321544]
[1673710414692,0.1287,20859.0,20853.0,0.5321544]
[1673710414953,0.1287,20859.0,20852.0,0.479754]
[1673710414954,0.51118895,20858.0,20852.0,0.479564]
[1673710415223,0.51118895,20858.0,20851.0,0.479585]
[1673710415224,0.40302395,20857.0,20850.0,0.01429965]
[1673710415487,0.51118895,20856.0,20850.0,0.01429965]
[1673710415801,0.40302395,20855.0,20850.0,0.01429965]
[1673710416070,0.61118895,20854.0,20853.0,0.091]
[1673710416329,0.549163,20854.0,20853.0,0.091]
[1673710416576,0.549163,20854.0,20850.0,0.01429965]
[1673710416577,0.1,20853.0,20850.0,0.01429965]
[1673710416822,0.212298,20852.0,20850.0,0.02229965]
[1673710417136,0.015,20855.0,20850.0,0.02229965]
[1673710417418,0.20072595,20855.0,20850.0,0.07490905]
[1673710417679,0.1,20853.0,20850.0,0.07490905]
[1673710417945,0.212298,20852.0,20850.0,0.01429965]
[1673710418200,0.320463,20851.0,20850.0,0.01429965]
[1673710418455,0.51118895,20851.0,20850.0,0.01429965]
[1673710418710,0.620463,20851.0,20850.0,0.01629965]
[1673710419218,0.320463,20851.0,20850.0,0.01429965]
[1673710419470,0.320463,20851.0,20847.0,0.71719239]
[1673710419471,1.38699429,20851.0,20847.0,0.71719239]
[1673710419734,1.28264395,20850.0,20847.0,0.71719239]
[1673710420013,0.420463,20849.0,20847.0,0.71719239]
[1673710420261,0.212298,20848.0,20847.0,0.71719239]
[1673710420491,0.340398,20848.0,20847.0,0.71719239]
[1673710421291,0.33991409,20848.0,20847.0,0.71719239]
[1673710422020,0.47591409,20848.0,20847.0,0.71719239]
[1673710422287,0.34781409,20848.0,20847.0,0.76980179]
[1673710422536,0.136,20848.0,20847.0,0.7371114]
[1673710422766,0.136,20848.0,20847.0,0.71719239]
[1673710424268,0.1,20851.0,20847.0,0.71719239]
[1673710424521,0.9542,20852.0,20847.0,0.76980179]
[1673710424751,0.9542,20852.0,20848.0,0.0526094]
[1673710424752,0.320442,20851.0,20848.0,0.0526094]
[1673710424999,0.9542,20852.0,20847.0,0.71719239]
[1673710425262,1.14492595,20852.0,20847.0,0.76980179]
[1673710425511,0.04,20848.0,20847.0,0.71919239]
[1673710425761,0.9542,20852.0,20847.0,0.71719239]
[1673710426000,0.113,20851.0,20848.0,0.002]
[1673710426253,0.113,20851.0,20848.0,0.479645]
[1673710427735,1.1391,20857.0,20848.0,0.5322544]
[1673710427981,0.113,20851.0,20849.0,0.52991074]
[1673710428230,0.113,20851.0,20850.0,0.479609]
[1673710428479,0.113,20851.0,20850.0,0.8407184]
[1673710428730,1.197,20861.0,20852.0,0.1]
[1673710428976,1.197,20861.0,20854.0,0.959016]
[1673710428977,0.055,20857.0,20854.0,0.959016]
[1673710429239,1.197,20861.0,20854.0,1.48767336]
[1673710429474,1.197,20861.0,20855.0,0.52865736]
[1673710429726,1.197,20861.0,20856.0,1.0115454]
[1673710429975,1.197,20861.0,20856.0,0.0526094]
[1673710429976,1.60858595,20861.0,20856.0,0.0526094]
[1673710430217,0.320442,20860.0,20856.0,0.0526094]
[1673710430476,0.211838,20859.0,20853.0,0.479525]
[1673710430720,0.1287,20860.0,20853.0,0.5321344]
[1673710430721,0.51116795,20858.0,20853.0,0.5321344]
[1673710430982,0.19072595,20858.0,20856.0,0.091]
[1673710431240,0.1287,20860.0,20854.0,0.479512]
[1673710431487,0.19472595,20860.0,20856.0,0.091]
[1673710431729,0.004,20860.0,20856.0,0.1436094]
[1673710431976,0.004,20860.0,20856.0,0.091]
[1673710431977,0.005,20858.0,20856.0,0.091]
[1673710432211,0.004,20860.0,20854.0,0.479512]
[1673710432212,0.32335138,20860.0,20854.0,0.479512]
[1673710432461,0.19072595,20859.0,20854.0,0.6621214]
[1673710432714,0.19072595,20859.0,20854.0,0.609512]
[1673710432966,0.19072595,20859.0,20854.0,0.6621214]
[1673710433227,0.19072595,20859.0,20854.0,0.5321214]
[1673710433469,0.19072595,20859.0,20856.0,0.091]
[1673710433706,0.4,20860.0,20854.0,0.5321214]
[1673710433966,0.1287,20858.0,20854.0,0.1826094]
[1673710434211,0.211838,20857.0,20851.0,0.68210668]
[1673710434451,0.51116795,20856.0,20851.0,0.20252768]
[1673710434713,0.98206595,20855.0,20851.0,0.20252768]
[1673710434961,0.63986795,20854.0,20851.0,0.20252768]
[1673710435226,0.211838,20853.0,20851.0,0.20252768]
[1673710435470,0.320442,20852.0,20851.0,0.20252768]
[1673710435719,0.708224,20854.0,20851.0,0.20252768]
[1673710436268,0.320442,20853.0,20851.0,0.20252768]
[1673710436518,0.211838,20852.0,20851.0,0.22652768]
[1673710436770,0.544524,20854.0,20851.0,0.23652768]
[1673710437035,0.479503,20855.0,20851.0,0.20252768]
[1673710437275,0.479503,20855.0,20851.0,0.25513708]
[1673710437276,0.320442,20854.0,20851.0,0.25513708]
[1673710437519,0.211838,20853.0,20851.0,0.25513708]
[1673710437777,0.9815,20856.0,20851.0,1.16171068]
[1673710438013,0.9815,20856.0,20852.0,0.0526094]
[1673710438268,0.479414,20859.0,20853.0,1.0116934]
[1673710438523,0.607502,20860.0,20854.0,0.0526094]
[1673710438524,1.455002,20860.0,20854.0,0.0526094]
[1673710438776,0.99049605,20860.0,20855.0,0.5320984]
[1673710439028,0.320442,20859.0,20856.0,0.0526094]
[1673710439271,0.99049605,20860.0,20856.0,0.0526094]
[1673710439272,0.211838,20858.0,20856.0,0.5320854]
[1673710439533,0.320442,20857.0,20856.0,0.479476]
[1673710439814,0.01989605,20860.0,20856.0,0.479476]
[1673710440080,0.01489605,20860.0,20857.0,0.0526094]
[1673710440312,0.001,20858.0,20857.0,0.0526094]
[1673710440557,0.01489605,20860.0,20857.0,0.479446]
[1673710440814,0.01489605,20860.0,20858.0,0.0526094]
[1673710441099,0.01489605,20860.0,20859.0,0.479409]
[1673710441324,0.01489605,20860.0,20859.0,0.958818]
[1673710442082,0.06189605,20860.0,20859.0,0.958818]
[1673710442365,0.01489605,20860.0,20859.0,0.958818]
[1673710442581,0.07989605,20860.0,20859.0,0.01]
[1673710442838,0.40033805,20860.0,20859.0,0.01]
[1673710443353,1.82657233,20860.0,20859.0,0.01]
[1673710443616,1.82657233,20860.0,20851.0,0.20252768]
[1673710443617,0.1,20859.0,20851.0,0.20252768]
[1673710443874,0.1287,20854.0,20851.0,0.20252768]
[1673710444106,0.51116795,20853.0,20851.0,0.20252768]
[1673710444357,0.211838,20852.0,20851.0,0.20252768]
[1673710444613,0.19072595,20853.0,20851.0,0.20252768]
[1673710444871,0.1,20855.0,20851.0,0.20252768]
[1673710445122,0.449142,20854.0,20851.0,0.20252768]
[1673710445357,0.211838,20853.0,20851.0,0.19252768]
[1673710445628,0.608228,20854.0,20851.0,0.19252768]
[1673710445629,0.320442,20852.0,20851.0,0.19252768]
[1673710446874,0.326442,20852.0,20851.0,0.19252768]
[1673710448865,0.326442,20852.0,20848.0,0.479641]
[1673710449129,0.19672595,20852.0,20848.0,0.479641]
[1673710449877,0.320442,20851.0,20848.0,0.479641]
[1673710450141,0.19072595,20851.0,20848.0,0.479641]
[1673710450384,0.594571,20852.0,20847.0,0.48442047]
[1673710450633,0.78529695,20852.0,20847.0,0.53702987]
[1673710450889,1.26486695,20852.0,20847.0,0.53702987]
[1673710451463,1.14986695,20852.0,20847.0,0.53702987]
[1673710452218,0.68429695,20852.0,20847.0,0.53702987]
[1673710452469,0.68429695,20852.0,20847.0,1.01671487]
[1673710453229,0.014,20852.0,20848.0,0.0526094]
[1673710453480,0.014,20852.0,20849.0,0.5322434]
[1673710453766,0.014,20852.0,20849.0,1.4915114]
[1673710453976,0.014,20852.0,20849.0,1.438902]
[1673710454519,0.014,20852.0,20849.0,1.46158619]
[1673710454772,1.85544756,20857.0,20849.0,1.46158619]
[1673710455085,0.016,20852.0,20850.0,0.0526094]
[1673710455366,0.016,20852.0,20851.0,0.959186]
[1673710455634,0.19072595,20856.0,20851.0,0.967686]
[1673710455892,1.17636087,20857.0,20852.0,0.0526094]
[1673710456151,0.016,20857.0,20853.0,1.4912144]
[1673710456439,0.016,20857.0,20854.0,0.1526094]
[1673710456704,0.016,20857.0,20855.0,0.479501]
[1673710456952,0.016,20857.0,20855.0,1.4911124]
[1673710457206,0.016,20857.0,20855.0,1.438503]
[1673710457720,0.005,20857.0,20855.0,1.438503]
[1673710457975,0.01489605,20860.0,20855.0,1.438503]
[1673710458225,0.005,20857.0,20856.0,0.0526094]
[1673710458487,0.005,20857.0,20856.0,0.967456]
[1673710458747,0.005,20857.0,20856.0,1.29014019]
[1673710459022,0.01489605,20860.0,20856.0,0.958956]
[1673710459308,0.005,20857.0,20856.0,1.1355654]
[1673710459548,0.005,20857.0,20856.0,1.082956]
[1673710460307,0.01489605,20860.0,20856.0,0.958956]
[1673710460578,0.01989605,20860.0,20856.0,1.1345654]
[1673710460803,0.01489605,20860.0,20856.0,1.0115654]
[1673710461063,0.005,20857.0,20856.0,0.124]
[1673710461306,0.1,20858.0,20856.0,0.124]
[1673710461666,0.320442,20857.0,20853.0,0.479526]
[1673710461817,0.420442,20857.0,20853.0,0.479526]
[1673710462073,0.19072595,20857.0,20853.0,0.479526]
[1673710462320,0.19072595,20857.0,20856.0,0.124]
[1673710462587,0.005,20858.0,20856.0,0.124]
[1673710463358,0.005,20858.0,20855.0,0.479499]
[1673710463359,0.49428305,20860.0,20855.0,0.958977]
[1673710463607,0.005,20857.0,20856.0,1.0115604]
[1673710463873,0.01489605,20860.0,20856.0,1.78743625]
[1673710464135,0.005,20858.0,20857.0,0.52835595]
[1673710464385,0.01489605,20860.0,20858.0,0.47587598]
[1673710464644,0.01489605,20860.0,20859.0,1.438227]
[1673710464899,0.01489605,20860.0,20859.0,1.738227]
[1673710465154,0.01489605,20860.0,20859.0,1.438227]
[1673710465425,0.01989605,20860.0,20859.0,1.86941119]
[1673710465696,0.01989605,20860.0,20859.0,2.32225931]
[1673710465948,0.01989605,20860.0,20859.0,2.02225931]
[1673710466196,0.01989605,20860.0,20859.0,2.32225931]
[1673710466197,0.11424005,20860.0,20859.0,2.32225931]
[1673710466455,0.11824005,20860.0,20859.0,2.3479435]
[1673710467004,0.11824005,20860.0,20859.0,2.0479435]
[1673710467258,0.304966,20860.0,20859.0,0.958818]
[1673710467513,0.304966,20860.0,20859.0,0.14]
[1673710467764,0.11424005,20860.0,20859.0,0.14]
[1673710468062,0.43468205,20860.0,20859.0,0.139]
[1673710469029,0.43468205,20860.0,20855.0,0.479497]
[1673710469319,0.40256395,20859.0,20855.0,0.479497]
[1673710469543,0.1,20858.0,20855.0,0.479497]
[1673710469810,0.11424005,20860.0,20854.0,0.479516]
[1673710469811,0.19072595,20857.0,20854.0,0.479516]
[1673710470609,0.9586,20859.0,20853.0,0.479541]
[1673710470888,0.19072595,20858.0,20853.0,0.5321504]
[1673710471150,0.29072595,20858.0,20853.0,0.5321504]
[1673710471399,0.19072595,20858.0,20853.0,0.5321504]
[1673710472733,0.67015895,20858.0,20855.0,0.14]
[1673710473002,0.958865,20858.0,20855.0,0.14]
[1673710473250,0.320442,20857.0,20855.0,0.14]
[1673710473504,0.211838,20856.0,20855.0,0.14]
[1673710473759,0.211838,20856.0,20853.0,0.0526094]
[1673710474003,0.479459,20857.0,20853.0,0.052]
[1673710474255,0.479459,20857.0,20852.0,0.959101]
[1673710474553,0.19472595,20857.0,20855.0,0.003]
[1673710474749,0.479433,20858.0,20853.0,0.479545]
[1673710475008,0.67015895,20858.0,20853.0,0.5841544]
[1673710475507,0.67015895,20858.0,20853.0,0.5321544]
[1673710475753,0.320442,20857.0,20853.0,0.5321544]
[1673710476032,0.19072595,20857.0,20853.0,0.479545]
[1673710476260,0.67018495,20857.0,20852.0,1.084103]
[1673710476509,0.19072595,20856.0,20852.0,1.084103]
[1673710476764,0.19072595,20856.0,20852.0,0.959103]
[1673710477304,0.19072595,20856.0,20852.0,1.084103]
[1673710477550,0.479459,20857.0,20852.0,1.0117124]
[1673710477794,0.67018495,20857.0,20852.0,1.1367124]
[1673710478320,0.77018495,20857.0,20852.0,1.1367124]
[1673710478553,0.67018495,20857.0,20852.0,1.0117124]
[1673710479057,0.67018495,20857.0,20852.0,1.1367124]
[1673710479302,0.67018495,20857.0,20852.0,0.604549]
[1673710479303,0.19072595,20856.0,20852.0,0.604549]
[1673710479564,0.67021195,20856.0,20852.0,0.125]
[1673710480083,0.479486,20856.0,20851.0,0.479575]
[1673710480342,0.67021195,20856.0,20851.0,0.5321844]
[1673710480595,0.67021195,20856.0,20852.0,0.125]
[1673710480871,0.479486,20856.0,20852.0,0.1776094]
[1673710481345,0.67021195,20856.0,20852.0,0.479566]
[1673710482146,0.67021195,20856.0,20852.0,0.12492341]
[1673710482147,0.51116795,20855.0,20852.0,0.12492341]
[1673710482371,1.270886,20854.0,20852.0,0.12492341]
[1673710482607,0.320442,20853.0,20852.0,0.12492341]
[1673710482877,1.279536,20853.0,20852.0,0.12492341]
[1673710483132,1.379536,20853.0,20847.0,0.48442847]
[1673710483434,0.40256395,20852.0,20847.0,0.48442847]
[1673710483684,0.99076395,20851.0,20847.0,0.48442847]
[1673710483932,0.67032195,20851.0,20847.0,0.48442847]
[1673710484965,0.67132195,20851.0,20847.0,0.61842847]
[1673710485216,0.67132195,20851.0,20847.0,0.13875647]
[1673710485473,0.19072595,20850.0,20847.0,0.13875647]
[1673710485732,0.800081,20849.0,20847.0,0.13875647]
[1673710485997,0.320442,20848.0,20847.0,0.13875647]
[1673710486253,0.959278,20849.0,20847.0,0.13875647]
[1673710486741,0.959278,20849.0,20847.0,0.00475647]
[1673710486742,0.320442,20848.0,20847.0,0.00475647]
[1673710486993,1.279766,20848.0,20847.0,0.06075647]
[1673710487500,1.279766,20848.0,20847.0,0.00475647]
[1673710487739,0.479639,20849.0,20847.0,0.05736587]
[1673710487740,0.011,20849.0,20847.0,0.05736587]
[1673710487998,0.011,20849.0,20847.0,0.00475647]
[1673710488249,0.479614,20851.0,20847.0,0.00475647]
[1673710488487,0.479614,20851.0,20847.0,0.05736587]
[1673710488742,0.011,20848.0,20847.0,0.05736587]
[1673710488987,0.011,20848.0,20847.0,0.00475647]
[1673710489740,0.579609,20851.0,20847.0,0.00475647]
[1673710489994,0.579609,20851.0,20847.0,0.05736587]
[1673710490249,0.011,20848.0,20847.0,0.00475647]
[1673710490485,0.579609,20851.0,20847.0,0.00475647]
[1673710490726,0.579609,20851.0,20847.0,0.05736587]
[1673710490727,0.590609,20851.0,20847.0,0.05736587]
[1673710491210,0.959202,20851.0,20847.0,0.05736587]
[1673710491462,0.579593,20851.0,20847.0,0.05736587]
[1673710491695,0.479593,20851.0,20847.0,0.05736587]
[1673710491934,0.490593,20851.0,20847.0,0.05736587]
[1673710492190,0.490593,20851.0,20847.0,0.53704987]
[1673710492947,0.490593,20851.0,20847.0,0.48444047]
[1673710493196,0.011,20851.0,20847.0,0.48444047]
[1673710493695,0.011,20851.0,20847.0,0.96412547]
[1673710494404,0.20172595,20851.0,20847.0,0.96412547]
[1673710494911,0.29072595,20850.0,20847.0,0.00475647]
[1673710495152,0.320442,20849.0,20847.0,0.00475647]
[1673710495409,0.211838,20848.0,20847.0,0.00475647]
[1673710495645,0.77034295,20850.0,20847.0,0.00475647]
[1673710495897,0.579617,20850.0,20847.0,0.00475647]
[1673710496142,0.320442,20849.0,20847.0,0.00475647]
[1673710496395,0.579617,20850.0,20847.0,0.00475647]
[1673710496892,0.011,20848.0,20847.0,0.00475647]
[1673710497132,0.006,20848.0,20847.0,0.00475647]
[1673710497379,0.479617,20850.0,20847.0,0.00475647]
[1673710497651,0.485617,20850.0,20847.0,0.00475647]
[1673710498160,0.320442,20849.0,20847.0,0.00475647]
[1673710498416,0.006,20848.0,20847.0,0.00475647]
[1673710499907,0.959222,20851.0,20847.0,0.00475647]
[1673710500157,0.006,20850.0,20847.0,0.05736587]
[1673710500397,0.959221,20851.0,20847.0,0.00475647]
[1673710500658,0.959221,20851.0,20847.0,0.05736587]
[1673710500659,0.006,20848.0,20847.0,0.05736587]
[1673710500907,0.47961,20851.0,20847.0,0.00475647]
[1673710501180,0.006,20850.0,20847.0,0.05736587]
[1673710501450,0.47961,20851.0,20847.0,0.48371047]
[1673710501665,0.006,20848.0,20847.0,0.53631987]
[1673710501906,0.479592,20852.0,20847.0,0.48371047]
[1673710502160,0.479592,20852.0,20847.0,0.53631987]
[1673710502654,0.479592,20852.0,20847.0,0.48345247]
[1673710502905,0.479592,20852.0,20847.0,1.01574687]
[1673710502906,0.19072595,20852.0,20847.0,1.01574687]
[1673710503167,0.006,20850.0,20848.0,0.0526094]
[1673710503459,0.63698725,20857.0,20849.0,1.438917]
[1673710503695,0.006,20852.0,20850.0,0.83597486]
[1673710503957,0.006,20852.0,20851.0,0.479593]
[1673710504178,0.01436489,20857.0,20851.0,0.479593]
[1673710504428,0.01436489,20857.0,20852.0,0.0526094]
[1673710504681,0.01436489,20857.0,20853.0,1.0116904]
[1673710504978,0.01436489,20857.0,20854.0,0.0526094]
[1673710505223,0.01436489,20857.0,20854.0,1.0116344]
[1673710506212,0.01436489,20857.0,20854.0,0.959025]
[1673710506460,0.02036489,20857.0,20854.0,0.959025]
[1673710506962,0.02036489,20857.0,20854.0,0.479504]
[1673710506963,0.21109084,20857.0,20854.0,0.479504]
[1673710507702,0.02036489,20857.0,20853.0,0.479546]
[1673710507953,0.3542392,20857.0,20853.0,0.479546]
[1673710508194,0.21109084,20857.0,20853.0,0.479546]
[1673710508427,0.02036489,20857.0,20853.0,0.479546]
[1673710508671,0.20509084,20857.0,20853.0,0.479546]
[1673710509163,0.01436489,20857.0,20853.0,0.538546]
[1673710509650,0.15751325,20857.0,20853.0,0.538546]
[1673710510634,0.01436489,20857.0,20853.0,0.538546]
[1673710510890,0.01436489,20857.0,20853.0,0.59173264]
[1673710511163,0.01436489,20857.0,20854.0,0.05318664]
[1673710511415,0.01436489,20857.0,20855.0,1.49168964]
[1673710511952,0.01436489,20857.0,20856.0,0.1]
[1673710512213,0.01436489,20857.0,20856.0,0.958956]
[1673710513211,0.01436489,20857.0,20856.0,1.258956]
[1673710513467,0.01436489,20857.0,20856.0,1.86048219]
[1673710513468,6.489e-05,20857.0,20856.0,1.86048219]
[1673710513705,6.489e-05,20857.0,20856.0,1.98517736]
[1673710513706,0.00606489,20857.0,20856.0,1.98517736]
[1673710513959,0.01461557,20858.0,20857.0,0.1]
[1673710514208,0.01461557,20858.0,20857.0,1.5312734]
[1673710514461,0.01461557,20858.0,20857.0,0.95891]
[1673710515236,0.01461557,20858.0,20857.0,1.09891]
[1673710516961,0.01461557,20858.0,20857.0,1.87123127]
[1673710517228,0.01461557,20858.0,20857.0,1.87122705]
[1673710517982,0.01461557,20858.0,20857.0,1.40741]
[1673710518253,0.01461557,20858.0,20857.0,1.09891]
[1673710518254,0.20527092,20858.0,20857.0,1.09891]
[1673710518507,0.01454497,20858.0,20857.0,1.09891]
[1673710519793,0.01454497,20858.0,20857.0,1.50741]
[1673710520331,0.01454497,20858.0,20857.0,1.96243167]